Cogmind - Beta 10.2 @@@ ROGUE MODE // 2021.05.28 @ 19:15:34 Player: mat Result: Destroyed by Lightning with EMDS Performance ------------- Evolutions (4) 2000 Regions Visited (16) 3200 Robots Destroyed (113) 565 Value Destroyed (4270) 4270 Prototype IDs (1) 20 Alien Tech Used (0) 0 Bonus (882) 882 TOTAL SCORE: 10937 Bonus ------- Follower Combat Kills 811 Network Hubs Disabled 200 Met Imprinter 300 Friendly Fire -429 Cogmind --------- Core Integrity 0/850 Matter 495/500 Energy 343/350 System Corruption 15% Temperature Cool (4) Movement Treading (160) Location -6/Hub_04(d) Parts ------- > --- POWER (2) -------- Quantum Reactor > --- PROPULSION (2) --- Centrium Heavy Treads > --- UTILITY (7) ------ Large Storage Unit High-capacity Storage Unit High-capacity Matter Pod Targeting Computer > --- WEAPON (4) ------- Heavy Assault Rifle KE Penetrator > --- INVENTORY (18) --- Improved Cooling System Advanced Signal Interpreter Advanced Targeting Computer Heavy Armor Plating Layered Medium Armor Plating Improved KE Penetrator Improved KE Penetrator Long-range Missile Launcher Heavy Pick Peak State ------------ > --- POWER ------------ Reinforced Deuterium Engine Light Antimatter Reactor > --- PROPULSION ------- Improved Medium Treads Improved Medium Treads > --- UTILITY ---------- Advanced Heat Sink Improved Cooling System Large Storage Unit High-capacity Storage Unit High-capacity Matter Pod High-capacity Matter Pod Targeting Computer > --- WEAPON ----------- Gauss Rifle Gauss Rifle Heavy Machine Gun Advanced Assault Cannon > --- INVENTORY -------- Quantum Reactor Improved Medium Treads Centrium Heavy Treads Improved Cooling System Advanced Signal Interpreter Advanced Targeting Computer Heavy Armor Plating Layered Medium Armor Plating Beamcaster Heavy Assault Rifle Heavy Assault Rifle Gauss Rifle Improved KE Penetrator Improved KE Penetrator Long-range Missile Launcher Heavy Pick [Rating: 61] Favorites ----------- Power Reinforced Ion Engine Engine Reinforced Ion Engine Power Core Light Nuclear Core Reactor Light Antimatter Reactor Propulsion Light Treads Treads Light Treads Leg Aluminum Leg Utility Large Storage Unit Device Improved Heat Sink Storage Large Storage Unit Processor Targeting Computer Protection Layered Medium Armor Plating Weapon Heavy Assault Rifle Energy Gun Beam Rifle Energy Cannon Heavy Plasma Cannon Ballistic Gun Heavy Assault Rifle Ballistic Cannon Advanced Assault Cannon Special Melee Weapon Datajack Build | -11 -10 -9 -9 -9 -8 -8 -7 -7 -7 -7 -6 -6 -6 -6 -6 -6 ------- Run | Scr Mat Mat Min Exi Min Mat Fac Low Low Zio Pro Fac Ext Cet Arc Hub Slots Evolved 8 | . . 2 . . . 2 2 . . . . 2 . . . . Power 1 | . . . . . . . . . . . . 1 . . . . Propulsion . | . . . . . . . . . . . . . . . . . Utility 5 | . . 2 . . . 1 1 . . . . 1 . . . . Weapon 2 | . . . . . . 1 1 . . . . . . . . . Parts Attached 139 | 6 4 5 3 1 13 12 4 . 8 1 . 22 41 11 1 7 Power 18 | 1 1 1 . . 3 . 1 . . . . 3 4 2 . 2 Engine 12 | 1 1 1 . . 2 . 1 . . . . 2 3 1 . . Core 4 | . . . . . 1 . . . . . . 1 1 . . 1 Reactor 2 | . . . . . . . . . . . . . . 1 . 1 Propulsion 33 | 2 . 1 2 . 3 3 . . 2 1 . 3 12 3 . 1 Treads 18 | 2 . . . . 2 3 . . 1 1 . 1 4 3 . 1 Leg 15 | . . 1 2 . 1 . . . 1 . . 2 8 . . . Wheel . | . . . . . . . . . . . . . . . . . Hover . | . . . . . . . . . . . . . . . . . Flight . | . . . . . . . . . . . . . . . . . Utility 31 | 1 2 2 . 1 3 3 1 . 2 . . 9 6 1 . . Device 17 | . . 2 . . 1 1 . . 2 . . 6 4 1 . . Storage 7 | 1 2 . . 1 . 1 1 . . . . . 1 . . . Processor 1 | . . . . . . 1 . . . . . . . . . . Hackware . | . . . . . . . . . . . . . . . . . Protection 6 | . . . . . 2 . . . . . . 3 1 . . . Artifact . | . . . . . . . . . . . . . . . . . Weapon 57 | 2 1 1 1 . 4 6 2 . 4 . . 7 19 5 1 4 Energy Gun 14 | 1 . 1 . . 1 3 2 . 1 . . 1 2 1 1 . Energy Cannon 3 | . . . . . . . . . . . . 1 2 . . . Ballistic Gun 36 | 1 1 . 1 . 3 3 . . 3 . . 5 11 4 . 4 Ballistic Cannon 1 | . . . . . . . . . . . . . 1 . . . Launcher . | . . . . . . . . . . . . . . . . . Special Weapon . | . . . . . . . . . . . . . . . . . Impact Weapon . | . . . . . . . . . . . . . . . . . Slashing Weapon . | . . . . . . . . . . . . . . . . . Piercing Weapon . | . . . . . . . . . . . . . . . . . Special Melee Weapon 3 | . . . . . . . . . . . . . 3 . . . Unidentified Prototypes 1 | . . . . . . . . . . . . . . . . 1 Parts Lost 78 | . . 3 2 . 8 3 2 . 8 . . 13 17 8 1 13 Power 13 | . . 1 . . 1 . 1 . . . . 3 2 2 . 3 Propulsion 15 | . . 1 1 . 1 1 . . 2 . . 3 3 1 1 1 Utility 17 | . . . . . 3 1 . . 2 . . 3 4 1 . 3 Weapon 33 | . . 1 1 . 3 1 1 . 4 . . 4 8 4 . 6 Highest Loss Streak 12 | . . 2 2 . 4 2 2 . 6 . . 6 12 4 1 11 Average Slot Usage (%) 95 | . 92 76 91 100 95 98 100 100 94 100 100 97 93 98 93 89 Engine 8 | . 13 11 11 11 6 9 7 7 7 7 7 7 7 6 6 5 Core 1 | . . . . . 4 . . . . . . 2 2 . . . Treads 9 | . 22 8 . . 10 18 15 15 9 10 15 9 7 11 6 5 Leg 4 | . . 2 14 22 9 . . . . 4 . 2 4 . . . Device 13 | . . 10 22 22 12 13 15 15 14 15 15 12 12 13 13 11 Storage 22 | . 27 22 22 22 22 18 23 23 23 23 23 20 23 26 26 25 Processor 4 | . . . . . . 7 7 7 7 7 7 6 6 6 6 6 Protection 1 | . . . . . 7 4 . . . . . 6 2 . . . Energy Gun 4 | . 9 1 11 11 6 9 15 15 13 . . . . 3 6 5 Ballistic Gun 20 | . 18 20 11 11 15 17 15 15 16 30 30 25 16 18 20 20 Naked Turns . | . . . . . . . . . . . . . . . . . Heaviest Build 115 | 12 32 40 40 47 47 63 77 77 77 77 77 93 115 112 102 107 Greatest Support 80 | 40 40 20 23 23 40 40 40 40 40 40 40 40 60 60 60 80 Greatest Overweight (x) 27 | 3 1 3 3 2 3 1 1 1 3 3 1 8 27 3 3 3 Average Overweight (x) 1 | . . 1 2 1 1 1 1 1 2 2 1 2 2 1 2 2 Largest Inventory Capacity 18 | 6 14 14 14 16 16 18 18 18 18 18 18 18 18 18 18 18 Average Capacity 16 | 5 10 14 14 15 16 16 18 18 18 18 18 18 18 18 18 18 Most Carried 18 | 4 11 14 14 16 16 18 18 16 17 16 18 18 18 18 18 18 Average Carried 14 | 2 5 12 12 13 15 15 16 16 13 11 16 17 17 16 17 16 Final Capacity 18 | 6 14 14 14 16 16 18 18 18 18 18 18 18 18 18 18 18 Final Carried 18 | 2 11 14 13 16 16 18 16 16 10 16 18 18 18 18 18 10 Class Distribution -------------------- 67% | Scavenger-Gunner 21% | Mutant 7% | Scavenger-Mutant Dominant Class ---------------- Mutant | -10/Materials Mutant | -9/Materials Mutant | -9/Mines Mutant | -9/Exiles Scavenger-Mutant | -8/Mines Scavenger-Gunner | -8/Materials Scavenger-Gunner | -7/Factory Scavenger-Gunner | -7/Lower Caves Scavenger-Gunner | -7/Lower Caves Scavenger-Gunner | -7/Zion Scavenger-Gunner | -6/Proximity Caves Scavenger-Gunner | -6/Factory Scavenger-Gunner | -6/Extension Scavenger-Gunner | -6/Cetus Scavenger-Gunner | -6/Archives Scavenger-Gunner | -6/Hub_04(d) Resources | -11 -10 -9 -9 -9 -8 -8 -7 -7 -7 -7 -6 -6 -6 -6 -6 -6 ----------- Run | Scr Mat Mat Min Exi Min Mat Fac Low Low Zio Pro Fac Ext Cet Arc Hub Matter Collected 3991 | 161 207 325 44 20 208 268 27 62 185 10 . 572 1333 494 75 . Remotely . | . . . . . . . . . . . . . . . . . Salvage Created 5052 | . 256 358 172 . 536 574 45 38 294 . . 808 1388 358 82 143 Parts 249 | . 13 16 12 . 32 33 . 2 9 . . 35 71 21 2 3 Haulers Intercepted . | . . . . . . . . . . . . . . . . . Recyclers Shooed 4 | . . . . . . . . . . . . 4 . . . . Parts Field Recycled . | . . . . . . . . . . . . . . . . . Retrieved Matter . | . . . . . . . . . . . . . . . . . Parts Self-Destructed 18 | . . . . . . . . 2 9 . 7 . . . . . Prevented 4 | . . . . . . . . . 2 2 . . . . . . Kills | -11 -10 -9 -9 -9 -8 -8 -7 -7 -7 -7 -6 -6 -6 -6 -6 -6 ------- Run | Scr Mat Mat Min Exi Min Mat Fac Low Low Zio Pro Fac Ext Cet Arc Hub Combat Hostiles Destroyed 97 | . 7 5 6 . 16 12 1 1 5 . . 12 22 9 1 . Guns 88 | . 7 5 6 . 16 12 1 1 5 . . 10 17 7 1 . Cannons 7 | . . . . . . . . . . . . . 5 2 . . AOE 2 | . . . . . . . . . . . . 2 . . . . Classes Destroyed 12 | . 3 2 . . 1 1 . . 2 . . 3 . . . . Worker 4 | . 1 1 . . . . . . . . . . . . . 2 Builder 3 | . . . . . . . . . . . . 1 2 . . . Recycler 5 | . . 1 1 . 1 . . . . . . 2 . . . . Watcher 3 | . . . . . . 2 . . . . . 1 . . . . Swarmer 32 | . 3 . 6 . 11 3 . . . . . 5 . 4 . . Grunt 34 | . 4 3 . . 3 5 . 1 3 . . 1 14 . . . Brawler 2 | . . . . . 2 . . . . . . . . . . . Duelist 1 | . . . . . . . . . 1 . . . . . . . Sentry 12 | . . 2 . . . 4 1 . . . . 1 3 . 1 . Hunter 7 | . . . . . . . . . . . . 2 3 2 . . Programmer 2 | . . . . . . . . . . . . 2 . . . . Behemoth 4 | . . . . . . . . . 1 . . 1 2 . . . Cetus Guard 3 | . . . . . . . . . . . . . . 3 . . Enhanced Grunt 1 | . . . . . . . . . . . . . . . . 1 Best Kill Streak 6 | . 3 2 5 . 4 4 1 1 4 . . 5 4 6 1 1 Combat Bots Only 6 | . 3 2 4 . 4 4 1 1 4 . . 5 4 6 1 . Max Kills in Single Turn 2 | . 1 1 1 . 2 1 1 1 1 . . 2 2 1 1 1 Gunslinging 1 | . . . . . 1 . . . . . . 1 1 . . . Exploded 1 | . . . . . . . . . . . . 1 . . . . Melee . | . . . . . . . . . . . . . . . . . Uniques/NPCs Destroyed . | . . . . . . . . . . . . . . . . . Combat | -11 -10 -9 -9 -9 -8 -8 -7 -7 -7 -7 -6 -6 -6 -6 -6 -6 -------- Run | Scr Mat Mat Min Exi Min Mat Fac Low Low Zio Pro Fac Ext Cet Arc Hub Damage Taken 10618 | . 124 563 168 . 856 603 230 49 924 . . 2048 2497 1179 193 1184 Core 1170 | . 21 79 38 . 74 33 12 . 48 . . 239 285 57 47 237 Absorbed by Shields . | . . . . . . . . . . . . . . . . . Core Remaining (%) 85 | 100 91 . . . 52 94 . . . . 91 . . . . . Volleys Fired 343 | . 22 33 18 . 53 40 7 2 19 . . 51 60 26 5 7 Largest 4 | . 2 2 2 . 2 3 4 4 4 . . 4 4 4 4 4 Hottest 258 | . 60 76 76 . 76 111 174 167 170 . . 170 258 196 154 160 Shots Fired 983 | . 44 66 36 . 106 96 25 8 68 . . 149 235 104 20 26 Gun 897 | . 44 66 36 . 106 96 25 8 68 . . 130 195 77 20 26 Cannon 86 | . . . . . . . . . . . . 19 40 27 . . Launcher . | . . . . . . . . . . . . . . . . . Special . | . . . . . . . . . . . . . . . . . Kinetic 741 | . 27 55 18 . 66 65 13 4 40 . . 119 208 87 15 24 Thermal 225 | . . 11 18 . 40 31 12 4 28 . . 30 27 17 5 2 Explosive . | . . . . . . . . . . . . . . . . . Electromagnetic 17 | . 17 . . . . . . . . . . . . . . . Robot Hit Streak 23 | . 10 7 4 . 18 13 22 23 18 . . 10 11 15 18 6 Robot Miss Streak 6 | . 2 2 4 . 3 4 1 3 2 . . 3 5 2 1 6 Penetration Max 1 | . . . . . . . . . . . . 1 1 1 . 1 Secondary Targets 16 | . 1 . . . 4 2 . . 2 . . 2 5 . . . Max Gunslinging Chain 1 | . 1 . . . 1 1 . . 1 . . 1 1 . . . Shots Hit Robots 675 | . 33 48 18 . 81 65 23 5 55 . . 84 168 67 16 12 Core Hits 248 | . 12 16 7 . 31 32 3 3 18 . . 28 60 23 6 9 Critical Hits 11 | . 2 . . . . . 1 . . . . . 5 2 . 1 Critical Kills 6 | . . . . . . . . . . . . . 4 1 . 1 Critical Parts Destroyed 5 | . 2 . . . . . 1 . . . . . 1 1 . . Melee Attacks 17 | . . . . . . . . . . . . . 17 . . . Impact . | . . . . . . . . . . . . . . . . . Slashing . | . . . . . . . . . . . . . . . . . Piercing . | . . . . . . . . . . . . . . . . . Sneak Attacks 17 | . . . . . . . . . . . . . 17 . . . Combat Hostiles . | . . . . . . . . . . . . . . . . . Follow-up Attacks . | . . . . . . . . . . . . . . . . . Damage Inflicted 11995 | . 336 563 199 . 898 934 394 65 974 . . 1770 3424 1572 334 532 Guns 10482 | . 336 563 199 . 898 934 394 65 974 . . 1770 2693 1019 334 303 Cannons 1284 | . . . . . . . . . . . . . 731 553 . . Explosions 229 | . . . . . . . . . . . . . . . . 229 Melee . | . . . . . . . . . . . . . . . . . Ramming . | . . . . . . . . . . . . . . . . . Kinetic 8614 | . 155 445 43 . 502 517 213 34 566 . . 1542 2869 1238 230 260 Thermal 2971 | . . 118 156 . 396 417 181 31 408 . . 228 555 334 104 43 Explosive . | . . . . . . . . . . . . . . . . . Electromagnetic 410 | . 181 . . . . . . . . . . . . . . 229 Impact . | . . . . . . . . . . . . . . . . . Slashing . | . . . . . . . . . . . . . . . . . Piercing . | . . . . . . . . . . . . . . . . . Highest Corruption 15 | . . . . . . 1 . . . . . 7 8 8 8 15 Average Corruption 6 | . . . . . . 1 . . . . . 3 7 8 8 8 Corruption Purged . | . . . . . . . . . . . . . . . . . Effects 148 | . . . . . . . . . . . . 27 68 25 18 10 Message Errors 18 | . . . . . . . . . . . . 5 7 2 2 2 Matter Fused 28 | . . . . . . . . . . . . 4 15 3 3 3 Heat Flow Errors 13 | . . . . . . . . . . . . . 5 5 2 1 Energy Discharges 11 | . . . . . . . . . . . . 2 4 2 2 1 Parts Rejected 3 | . . . . . . . . . . . . . 1 2 . . Data Loss (minor) 22 | . . . . . . . . . . . . 9 8 1 4 . Data Loss (major) 3 | . . . . . . . . . . . . . 3 . . . Misfires 8 | . . . . . . . . . . . . 2 3 1 2 . Targeting Errors 37 | . . . . . . . . . . . . 5 21 8 1 2 Weapon Failures 5 | . . . . . . . . . . . . . 1 1 2 1 Overload Shots . | . . . . . . . . . . . . . . . . . Overflow Damage 12 | . . . . . . . . . . . . . 1 . . 11 Projectiles 1 | . . . . . . . . . . . . . 1 . . . Explosions 11 | . . . . . . . . . . . . . . . . 11 Melee . | . . . . . . . . . . . . . . . . . Knockbacks 3 | . . . . . . . . . . . . . 3 . . . Impact . | . . . . . . . . . . . . . . . . . Kinetic 2 | . . . . . . . . . . . . . 2 . . . Secondary 1 | . . . . . . . . . . . . . 1 . . . Self-Inflicted Damage 105 | . . . . . . . . . . . . . . . . 105 Shots 1 | . . . . . . . . . . . . . . . . 1 Rammed . | . . . . . . . . . . . . . . . . . Targets Rammed . | . . . . . . . . . . . . . . . . . Kicked . | . . . . . . . . . . . . . . . . . Crushed . | . . . . . . . . . . . . . . . . . Highest Temperature 292 | . 32 . . . 292 9 3 3 45 . . 13 264 215 52 60 Average Temperature 71 | . 13 . . . 99 5 3 3 16 . . 13 152 102 51 25 Received Heat Transfer 1938 | . 48 240 . . 315 252 36 27 183 . . 177 576 36 36 12 Siege Activations . | . . . . . . . . . . . . . . . . . Robots Corrupted 1 | . . . . . . . . . . . . . . . . 1 Combat Hostiles . | . . . . . . . . . . . . . . . . . Parts Fried 4 | . . . . . . . . . . . . . 1 . . 3 Impact Corruptions . | . . . . . . . . . . . . . . . . . Robots Melted . | . . . . . . . . . . . . . . . . . Combat Hostiles . | . . . . . . . . . . . . . . . . . Parts Melted 12 | . . . . . 1 1 2 . 3 . . . 5 . . . Heat Transferred 6077 | . . 296 407 . 1110 962 370 74 925 . . 333 824 535 185 56 Parts Sabotaged . | . . . . . . . . . . . . . . . . . Parts Stolen . | . . . . . . . . . . . . . . . . . Parts Stripped . | . . . . . . . . . . . . . . . . . Power Chain Reactions . | . . . . . . . . . . . . . . . . . Missiles Intercepted . | . . . . . . . . . . . . . . . . . Alert | -11 -10 -9 -9 -9 -8 -8 -7 -7 -7 -7 -6 -6 -6 -6 -6 -6 ------- Run | Scr Mat Mat Min Exi Min Mat Fac Low Low Zio Pro Fac Ext Cet Arc Hub Peak Influence 407 | . 245 104 124 . 150 297 112 . . . . 170 237 407 223 307 Initial 91 | . . 33 34 . . 58 91 . . . . . 42 88 82 77 Average 101 | . 122 61 61 . 68 168 92 . . . . 48 124 202 209 165 Maximum Alert Level 2 | . 1 . . . . 1 . . . . . . 1 2 1 1 Low Security (%) 85 | 100 66 100 100 . 100 65 100 . . . . 100 88 40 13 64 Level 1 14 | . 33 . . . . 34 . . . . . . 11 54 86 35 Level 2 . | . . . . . . . . . . . . . . 4 . . Level 3 . | . . . . . . . . . . . . . . . . . Level 4 . | . . . . . . . . . . . . . . . . . Level 5 . | . . . . . . . . . . . . . . . . . High Security . | . . . . . . . . . . . . . . . . . Max Security . | . . . . . . . . . . . . . . . . . Squads Dispatched 14 | . 3 . . . . 1 . . . . . 4 6 . . . Investigation 4 | . 1 . . . . 1 . . . . . . 2 . . . Extermination 2 | . . . . . . . . . . . . 2 . . . . Reinforcement 8 | . 2 . . . . . . . . . . 2 4 . . . Assault . | . . . . . . . . . . . . . . . . . Garrison . | . . . . . . . . . . . . . . . . . Intercept . | . . . . . . . . . . . . . . . . . Construction Impeded 2 | . . . . . . . . . . . . . 2 . . . Haulers Reinforced . | . . . . . . . . . . . . . . . . . Stealth | -11 -10 -9 -9 -9 -8 -8 -7 -7 -7 -7 -6 -6 -6 -6 -6 -6 --------- Run | Scr Mat Mat Min Exi Min Mat Fac Low Low Zio Pro Fac Ext Cet Arc Hub Distress Signals 7 | . 1 . . . . 1 . . . . . 1 3 1 . . Communications Jammed . | . . . . . . . . . . . . . . . . . Distress Signals . | . . . . . . . . . . . . . . . . . Times Spotted 163 | . 15 9 6 . 16 14 1 5 5 . 3 27 35 16 5 6 Peak Tracking Total 7 | . 5 4 4 . 4 3 1 4 4 . 1 5 5 7 1 4 Tactical Retreats 9 | . 4 . . . . . . . . . . 1 4 . . . Traps | -11 -10 -9 -9 -9 -8 -8 -7 -7 -7 -7 -6 -6 -6 -6 -6 -6 ------- Run | Scr Mat Mat Min Exi Min Mat Fac Low Low Zio Pro Fac Ext Cet Arc Hub Traps Triggered 5 | . 2 . . . . . . . . . . 1 2 . . . Indirectly . | . . . . . . . . . . . . . . . . . Trap Hack Attempts . | . . . . . . . . . . . . . . . . . Triggered . | . . . . . . . . . . . . . . . . . Disarmed . | . . . . . . . . . . . . . . . . . Reprogrammed . | . . . . . . . . . . . . . . . . . Reused . | . . . . . . . . . . . . . . . . . Traps Extracted . | . . . . . . . . . . . . . . . . . Installed . | . . . . . . . . . . . . . . . . . Triggered 4 | . 1 . . . . . . . 3 . . . . . . . Machines | -11 -10 -9 -9 -9 -8 -8 -7 -7 -7 -7 -6 -6 -6 -6 -6 -6 ---------- Run | Scr Mat Mat Min Exi Min Mat Fac Low Low Zio Pro Fac Ext Cet Arc Hub Machines Disabled 12 | . . . 1 . . . . . . . . . 3 3 . 5 Max in Single Turn 4 | . . . 1 . . . . . . . . . 1 1 . 4 Network Hub 1 | . . . . . . . . . . . . . . . . 1 Energy Cycler 1 | . . . . . . . . . . . . . 1 . . . Machines Sabotaged . | . . . . . . . . . . . . . . . . . Garrisons Compromised . | . . . . . . . . . . . . . . . . . Overloaded Fab Kills . | . . . . . . . . . . . . . . . . . Fab Network Shutdowns . | . . . . . . . . . . . . . . . . . Hacking | -11 -10 -9 -9 -9 -8 -8 -7 -7 -7 -7 -6 -6 -6 -6 -6 -6 --------- Run | Scr Mat Mat Min Exi Min Mat Fac Low Low Zio Pro Fac Ext Cet Arc Hub Machines Accessed 12 | . . 2 . . . 1 . . . . . . 7 1 . 1 Terminals 11 | . . 2 . . . . . . . . . . 7 1 . 1 Fabricators . | . . . . . . . . . . . . . . . . . Repair Stations 1 | . . . . . . 1 . . . . . . . . . . Recycling Units . | . . . . . . . . . . . . . . . . . Scanalyzers . | . . . . . . . . . . . . . . . . . Garrison Access . | . . . . . . . . . . . . . . . . . Total Hacks 20 | . . 2 . . . 3 . . . . . . 13 1 . 1 Successful 12 | . . 2 . . . 2 . . . . . . 6 1 . 1 Failed 8 | . . . . . . 1 . . . . . . 7 . . . Catastrophic 1 | . . . . . . . . . . . . . 1 . . . Database Lockouts . | . . . . . . . . . . . . . . . . . Manual 2 | . . . . . . . . . . . . . 1 1 . . Terminals 17 | . . 2 . . . . . . . . . . 13 1 . 1 Fabricators . | . . . . . . . . . . . . . . . . . Repair Stations 3 | . . . . . . 3 . . . . . . . . . . Recycling Units . | . . . . . . . . . . . . . . . . . Scanalyzers . | . . . . . . . . . . . . . . . . . Garrison Access . | . . . . . . . . . . . . . . . . . Terminal Hacks 10 | . . 2 . . . . . . . . . . 6 1 . 1 Robot Analysis 1 | . . 1 . . . . . . . . . . . . . . Open Door 6 | . . . . . . . . . . . . . 5 1 . . Alert Level 2 | . . . . . . . . . . . . . 1 . . 1 Locate Traps 1 | . . 1 . . . . . . . . . . . . . . Fabricator Hacks . | . . . . . . . . . . . . . . . . . Repair Station Hacks 2 | . . . . . . 2 . . . . . . . . . . Scan Component 1 | . . . . . . 1 . . . . . . . . . . Repair 1 | . . . . . . 1 . . . . . . . . . . Recycling Unit Hacks . | . . . . . . . . . . . . . . . . . Scanalyzer . | . . . . . . . . . . . . . . . . . Garrison Access Hacks . | . . . . . . . . . . . . . . . . . Unauthorized Hacks . | . . . . . . . . . . . . . . . . . Terminals . | . . . . . . . . . . . . . . . . . Fabricators . | . . . . . . . . . . . . . . . . . Repair Stations . | . . . . . . . . . . . . . . . . . Recycling Units . | . . . . . . . . . . . . . . . . . Scanalyzers . | . . . . . . . . . . . . . . . . . Garrison Access . | . . . . . . . . . . . . . . . . . Data Cores Recovered 1 | . . . . . . . . . . . . . 1 . . . Used . | . . . . . . . . . . . . . . . . . Hacking Detections 6 | . . . . . . 1 . . . . . . 5 . . . Full Trace Events 3 | . . . . . . 1 . . . . . . 2 . . . Feedback Events 1 | . . . . . . 1 . . . . . . . . . . Corruption 1 | . . . . . . 1 . . . . . . . . . . Feedback Blocked . | . . . . . . . . . . . . . . . . . Robot Schematics Acquired . | . . . . . . . . . . . . . . . . . Robots Built . | . . . . . . . . . . . . . . . . . Matter . | . . . . . . . . . . . . . . . . . Time . | . . . . . . . . . . . . . . . . . Total Robot Build Rating . | . . . . . . . . . . . . . . . . . Part Schematics Acquired . | . . . . . . . . . . . . . . . . . Parts Built . | . . . . . . . . . . . . . . . . . Matter . | . . . . . . . . . . . . . . . . . Time . | . . . . . . . . . . . . . . . . . Total Part Build Rating . | . . . . . . . . . . . . . . . . . Parts Repaired 1 | . . . . . . 1 . . . . . . . . . . Time 32 | . . . . . . 32 . . . . . . . . . . Parts Recycled . | . . . . . . . . . . . . . . . . . Recycled Matter . | . . . . . . . . . . . . . . . . . Retrieved Matter . | . . . . . . . . . . . . . . . . . Retrieved Components . | . . . . . . . . . . . . . . . . . Parts Scanalyzed . | . . . . . . . . . . . . . . . . . Part Schematics Acquired . | . . . . . . . . . . . . . . . . . Parts Damaged . | . . . . . . . . . . . . . . . . . Bothacking | -11 -10 -9 -9 -9 -8 -8 -7 -7 -7 -7 -6 -6 -6 -6 -6 -6 ------------ Run | Scr Mat Mat Min Exi Min Mat Fac Low Low Zio Pro Fac Ext Cet Arc Hub Used RIF Installer . | . . . . . . . . . . . . . . . . . Robots Hacked . | . . . . . . . . . . . . . . . . . Non-combat . | . . . . . . . . . . . . . . . . . Combat . | . . . . . . . . . . . . . . . . . Robot Hacks Applied . | . . . . . . . . . . . . . . . . . Relay Couplers Released . | . . . . . . . . . . . . . . . . . Robots Rewired 6 | . . . . . . . . . . . . . 6 . . . Allies Hacked . | . . . . . . . . . . . . . . . . . Hacks Repelled . | . . . . . . . . . . . . . . . . . Allies | -11 -10 -9 -9 -9 -8 -8 -7 -7 -7 -7 -6 -6 -6 -6 -6 -6 -------- Run | Scr Mat Mat Min Exi Min Mat Fac Low Low Zio Pro Fac Ext Cet Arc Hub Total Allies 15 | . . . . . . . . . . 3 . . 10 2 . . Largest Group 3 | . . . . . . . . . . 3 3 3 3 3 2 2 Highest-Rated Group 188 | . . . . . . . . . . 67 67 64 87 188 188 188 Highest-Rated Ally 94 | . . . . . . . . . . 28 28 28 37 94 94 94 Total Orders . | . . . . . . . . . . . . . . . . . Ally Attacks 146 | . . . . . . . . . . . 21 28 43 37 14 3 Total Damage 3253 | . . . . . . . . . . . 353 388 1047 869 507 89 Kills 25 | . . . . . . . . . . . 2 4 7 7 3 2 Allies Corrupted 1 | . . . . . . . . . . . . . . . . 1 Allies Melted . | . . . . . . . . . . . . . . . . . Intel | -11 -10 -9 -9 -9 -8 -8 -7 -7 -7 -7 -6 -6 -6 -6 -6 -6 ------- Run | Scr Mat Mat Min Exi Min Mat Fac Low Low Zio Pro Fac Ext Cet Arc Hub Robot Analysis Total 1 | . . 1 . . . . . . . . . . . . . . Derelict Logs Recovered 8 | . . . 2 . . . . 1 1 3 1 . . . . . Drone Launches . | . . . . . . . . . . . . . . . . . Drone Recoveries . | . . . . . . . . . . . . . . . . . Exploration | -11 -10 -9 -9 -9 -8 -8 -7 -7 -7 -7 -6 -6 -6 -6 -6 -6 ------------- Run | Scr Mat Mat Min Exi Min Mat Fac Low Low Zio Pro Fac Ext Cet Arc Hub Turns Passed 12182 | 76 451 624 687 466 915 650 270 566 742 1975 570 1673 1538 429 350 200 Spaces Moved 5530 | 48 218 278 333 270 423 277 121 303 325 961 307 696 569 170 153 78 Core 34 | 30 . . . . . . . . . . . . 4 . . . Treads 4446 | 18 218 235 . . 216 277 121 303 325 961 307 601 463 170 153 78 Legs 1050 | . . 43 333 270 207 . . . . . . 95 102 . . . Wheels . | . . . . . . . . . . . . . . . . . Hover . | . . . . . . . . . . . . . . . . . Flight . | . . . . . . . . . . . . . . . . . Fastest Speed 50 | 50 160 180 150 150 150 180 185 185 185 185 185 185 180 180 180 160 Average Speed 194 | 132 165 184 189 171 175 182 185 185 205 204 185 211 209 186 215 218 Slowest Speed 1400 | 200 180 210 210 180 210 185 185 185 220 220 185 360 1400 220 220 220 Overloaded Moves . | . . . . . . . . . . . . . . . . . Propulsion Burnouts . | . . . . . . . . . . . . . . . . . Robots Hopped . | . . . . . . . . . . . . . . . . . Cave-ins Triggered 1 | . . . . . . . . . . . . 1 . . . . Exploration Rate (%) 51 | 4 48 27 77 71 80 32 5 57 57 85 50 23 73 74 90 15 Regions Visited 16 Branch Regions 11 Pre-discovered Areas . | . . . . . . . . . . . . . . . . . Known Exits Taken 2 | . . . 1 . . . . . 1 . . . . . . . Unknown Exits Taken 14 | 1 1 1 . 1 1 1 1 1 . 1 1 1 1 1 1 . Scrap Searched 19 | . . . 1 . 1 . . 4 8 4 1 . . . . . Spaces Dug 19 | . . . . . . . . . . . . 19 . . . . Terrain Destroyed 209 | . . . . . . . . . 1 . . 22 16 3 . 167 Melee . | . . . . . . . . . . . . . . . . . Projectile 43 | . . . . . . . . . 1 . . 22 16 3 . 1 AOE 166 | . . . . . . . . . . . . . . . . 166 Terrain Rammed . | . . . . . . . . . . . . . . . . . Walls Destroyed . | . . . . . . . . . . . . . . . . . Machines Disabled . | . . . . . . . . . . . . . . . . . Actions | -11 -10 -9 -9 -9 -8 -8 -7 -7 -7 -7 -6 -6 -6 -6 -6 -6 --------- Run | Scr Mat Mat Min Exi Min Mat Fac Low Low Zio Pro Fac Ext Cet Arc Hub Total 6264 | 60 268 328 355 273 502 355 152 304 353 967 310 803 759 220 163 92 Wait 68 | . 13 3 . . . 4 19 . . . . 5 22 . 2 . Move 5513 | 47 217 277 332 269 422 276 120 302 324 960 306 694 568 169 152 78 Hop . | . . . . . . . . . . . . . . . . . Pick Up 121 | 7 12 8 2 3 8 12 2 . 2 6 3 19 25 11 1 . Fast Attach 17 | 1 . 2 . . 4 . . . . . . . 10 . . . Attach 84 | 5 3 3 3 . 7 6 4 . 8 . . 14 14 10 . 7 Detach . | . . . . . . . . . . . . . . . . . Swap 38 | . 1 . . 1 2 6 . . . 1 . 8 17 1 1 . Drop 62 | . . 2 . . 6 11 . . . . 1 11 26 3 2 . Fire 343 | . 22 33 18 . 53 40 7 2 19 . . 51 60 26 5 7 Melee 17 | . . . . . . . . . . . . . 17 . . . Ram . | . . . . . . . . . . . . . . . . . Kick . | . . . . . . . . . . . . . . . . . Crush . | . . . . . . . . . . . . . . . . . Escape Stasis 1 | . . . . . . . . . . . . 1 . . . . Rewire . | . . . . . . . . . . . . . . . . . Trap . | . . . . . . . . . . . . . . . . . Miscellaneous . | . . . . . . . . . . . . . . . . . Route ------- -11/Scrapyard -10/Materials -9/Materials -9/Mines (discovered 2 exits: *Mat / *Exi) -9/Exiles -8/Mines (discovered 2 exits: *Mat x2) -8/Materials -7/Factory (discovered 2 exits: Sto / [*Low]) -7/Lower Caves -7/Lower Caves -7/Zion -6/Proximity Caves -6/Factory (discovered 4 exits: Fac / Low x2 / *Ext) -6/Extension (discovered 3 exits: *Fac x2 / *Cet) -6/Cetus -6/Archives (discovered 3 exits: *Fac / *Hub x2) -6/Hub_04(d) (discovered 1 exit: *Fac) History --------- Turn | Location | Event 21 | -11/Scrapyard | Discovered new exit (range 15) 77 | -11/Scrapyard | Entered Materials 314 | -10/Materials | Build established: Mutant 325 | -10/Materials | Discovered new exit (range 16) 528 | -10/Materials | Entered another Materials area 528 | -9/Materials | Evolved 2 slots: Utility x2 1129 | -9/Materials | Discovered new exit (range 11) 1152 | -9/Materials | Entered Mines 1170 | -9/Mines | Met a Derelict bent on vengeance 1227 | -9/Mines | Discovered new exit (range 8) 1559 | -9/Mines | Identified exit to Exiles 1833 | -9/Mines | Deemed a non-threat by the Exiles lab entrance 1839 | -9/Mines | Entered Exiles 1880 | -9/Exiles | Met 8R-AWN 1901 | -9/Exiles | Met EX-HEX 1987 | -9/Exiles | Met EX-DEC 2018 | -9/Exiles | Visited The Gauntlet 2284 | -9/Exiles | Discovered new exit (range 14) 2305 | -9/Exiles | Entered Mines 2602 | -8/Mines | Lost 4 parts (1n2u1w) 2894 | -8/Mines | Discovered new exit (range 8) 2991 | -8/Mines | Build established: Scavenger-Mutant 3157 | -8/Mines | Discovered new exit (range 15) 3220 | -8/Mines | Entered Materials 3220 | -8/Materials | Evolved 2 slots: Utility x1, Weapon x1 3588 | -8/Materials | Build established: Scavenger-Gunner 3769 | -8/Materials | Repaired Hvy. Assault Rifle 3834 | -8/Materials | Discovered new exit (range 3) 3870 | -8/Materials | Entered Factory 3870 | -7/Factory | Evolved 2 slots: Utility x1, Weapon x1 3871 | -7/Factory | Identified exit to Storage 4050 | -7/Factory | Discovered new exit (range 16) 4140 | -7/Factory | Entered Lower Caves 4664 | -7/Lower Caves | Discovered new exit (range 12) 4706 | -7/Lower Caves | Entered another Lower Caves area 4743 | -7/Lower Caves | Identified exit to Zion 4946 | -7/Lower Caves | Spotted B-75 Beast 4992 | -7/Lower Caves | Destroyed B-75 Beast 5019 | -7/Lower Caves | Lost 6 parts (2n2u2w) 5448 | -7/Lower Caves | Entered Zion 5554 | -7/Zion | Given the Hacking Drone Bay 5563 | -7/Zion | Found Prototype Device 5581 | -7/Zion | Discovered new exit (range 13) 5806 | -7/Zion | Learned Factory garrison access intel 5872 | -7/Zion | Learned Factory non-interactive machine intel 6244 | -7/Zion | Given A8's code to call for help 6457 | -7/Zion | Gained Derelict followers 7423 | -7/Zion | Entered Proximity Caves 7423 | -6/Proximity Caves | Accompanied by 3 allies 7695 | -6/Proximity Caves | Spotted B-75 Beast 7703 | -6/Proximity Caves | Learned location of 1 exit from Factory 7714 | -6/Proximity Caves | Allies destroyed B-75 Beast 7976 | -6/Proximity Caves | Discovered new exit (range 10) 7989 | -6/Proximity Caves | Attracted the attention of an 0b10 checkpoint 7993 | -6/Proximity Caves | Entered Factory 7993 | -6/Factory | Accompanied by 3 allies 7993 | -6/Factory | Evolved 2 slots: Power x1, Utility x1 7994 | -6/Factory | Identified exit to Lower Caves 7995 | -6/Factory | Identified exit to Factory 7996 | -6/Factory | Loaded intel: 185 non-interactive machine locations 7997 | -6/Factory | Loaded intel: 3 garrison access locations 8953 | -6/Factory | Lost 3 parts (1p1u1w) 9154 | -6/Factory | Spotted B-75 Beast 9174 | -6/Factory | Destroyed B-75 Beast 9193 | -6/Factory | Lost 6 parts (1p2n1u2w) 9351 | -6/Factory | Crushed by falling debris 9592 | -6/Factory | Discovered new exit (range 16) 9666 | -6/Factory | Entered Extension 9878 | -6/Extension | Rescued a captive Derelict 9879 | -6/Extension | Rescued a captive Derelict 9956 | -6/Extension | Energy Cycler disabled 9957 | -6/Extension | Rescued a captive Derelict 9957 | -6/Extension | Rescued a captive Derelict 9958 | -6/Extension | Rescued a captive Derelict 9958 | -6/Extension | Rescued a captive Derelict 9959 | -6/Extension | Rescued a captive Derelict 9959 | -6/Extension | Rescued a captive Derelict 9961 | -6/Extension | Rescued a captive Derelict 9961 | -6/Extension | Rescued a captive Derelict 9963 | -6/Extension | Rescued a captive Derelict 10302 | -6/Extension | Lost 4 parts (1p1n2u) 10346 | -6/Extension | Spotted B-75 Beast 10373 | -6/Extension | Core integrity fell below 50% 10398 | -6/Extension | Destroyed B-75 Beast 10436 | -6/Extension | Lost 12 parts (1p2n1u8w) 10495 | -6/Extension | Spotted B-75 Beast 10500 | -6/Extension | Destroyed B-75 Beast 10505 | -6/Extension | Discovered exit to Factory (range 14) 10597 | -6/Extension | Extracted ID and sensor layout for unrecognized location from A7's data core 11190 | -6/Extension | Discovered exit to Factory (range 10) 11192 | -6/Extension | Discovered new exit (range 6) 11204 | -6/Extension | Entered Cetus 11204 | -6/Cetus | Accompanied by 3 allies 11228 | -6/Cetus | Spotted Cetus Guard 11228 | -6/Cetus | Spotted Cetus Guard 11233 | -6/Cetus | Spotted Cetus Guard 11238 | -6/Cetus | Destroyed Cetus Guard 11249 | -6/Cetus | Destroyed Cetus Guard 11249 | -6/Cetus | Allies destroyed Cetus Guard 11249 | -6/Cetus | Spotted Cetus Guard 11281 | -6/Cetus | Destroyed Cetus Guard 11303 | -6/Cetus | Lost 4 parts (2p1u1w) 11394 | -6/Cetus | Lost 4 parts (1n3w) 11416 | -6/Cetus | Enhanced Grunt warped into view, answering call for help 11421 | -6/Cetus | Enhanced Grunt warped into view, answering call for help 11503 | -6/Cetus | Cetus Manufacturing Module disabled 11606 | -6/Cetus | Discovered new exit (range 16) 11633 | -6/Cetus | Entered Archives 11633 | -6/Archives | Accompanied by 2 allies 11696 | -6/Archives | Unable to access archive contents 11737 | -6/Archives | Unable to access archive contents 11746 | -6/Archives | Discovered exit to Factory (range 16) 11759 | -6/Archives | Unable to access archive contents 11768 | -6/Archives | Discovered new exit (range 14) 11796 | -6/Archives | Discovered new exit (range 14) 11983 | -6/Archives | Entered Hub_04(d) 11983 | -6/Hub_04(d) | Accompanied by 2 allies 12030 | -6/Hub_04(d) | Discovered exit to Factory (range 3) 12112 | -6/Hub_04(d) | Network Hub disabled 12144 | -6/Hub_04(d) | Spotted Lightning 12148 | -6/Hub_04(d) | Core integrity fell below 20% 12149 | -6/Hub_04(d) | System corruption reached 10% 12155 | -6/Hub_04(d) | Spotted Lightning 12167 | -6/Hub_04(d) | Spotted Lightning 12183 | -6/Hub_04(d) | Destroyed by Lightning with EMDS Last Messages --------------- EMDS Slug penetrates Wall. Adv. Heat Sink destroyed. Slug penetrates Lightning. K-01 Serf suffers critical hit. K-01 Serf destroyed. System corrupted: Gauss Rifle targeting data glitched. Slug penetrates Wall. Slug penetrates Lightning. EMDS Slug penetrates Wall. Penetrated by EMDS Slug. A,WHE,XFT|#SHWNAWWLW YZMNMTQKOA EMDS Slug penetrates Wall. Penetrated by EMDS Slug. Imp. Medium Treads destroyed. Gauss Rifle destroyed. Hcp. Matter Pod destroyed. Identified Centrium Heavy Treads. Penetrated by EMDS Slug. Gauss Rifle destroyed. EMDS Slug penetrates Wall. Map ----- +----------------------------------------------------+ | ??????????????????????????????????????????????? | | ??????????????????????????????????????????????? | | ??????????????????????????????????????????????? | | ??????????????????????????????????????????????? | | ??????????????????????????????????????????????? | | ???????????????????? #????????????????????????? | | ???????????????????? ????????????????????????? | | ????????????????????" ????????????????????????? | | ????????????????????" #???????????????????????? | | ???????????????????"" #???????????????????????? | | ??????????????????""" #???????????????????????? | | ????? ?????????? #???????????????????????? | | ????##+###+#???# """" #???????????????????????? | | ????# #???# """" #???????????????????????? | | ???## #???# """" #???????????????????????? | | ???? #???# """" #???????????????????????? | | ????# #???# #???????????????????????? | | ????# #???# """" #???????????????????????? | | ????# #???# """" #???????????????????????? | | ????# #???# """" #?####??????????????????? | | ????# #???# """" ## ! #??????????????????? | | ????# #???# + %< #??????????????????? | | ##### #???# ##! #??###########?????? | | ##??# [ #?# ##?? ????? | | T#??# % #?# #?## ????? | | #######"######@#?# """"""""""""???? | | ##### * #?# " "???? | | ????# ####?# " "???? | | ????# ##########+## #????# " " ??? | | ????# #%[ %=# ###### " " ??? | | ????# #== " """"""""" " ?? | | ????# ## " " " ?? | | ????# #" " " " ?? | | ????#####" """""""""""" " ?? | | ????????#" "" "# ## "" % " ?? | | ????????## """" "###" "" " ??? | | ?????????# """" ""#?## "" " ??? | | ?????????# T"#??# """""""""""""???? | | ???????????||! ! ""#??# # ???? | | ?????????? |! ""???# # ???? | | ?????????? |! "????###################????? | | ?????????# "???????????????????????????? | | ?????????# ???????????????????????????? | | ?????????#] ???????????????????????????? | | ?????????#########????????????????????????????? | | ??????????????????????????????????????????????? | | ??????????????????????????????????????????????? | | ??????????????????????????????????????????????? | | ??????????????????????????????????????????????? | | ??????????????????????????????????????????????? | +----------------------------------------------------+ Best States ------------- Heat Dissipation 91 Energy Generation 32 Energy Capacity 360 Matter Stores 700 Matter Capacity 700 Sight Range 16 Terrain Scan Density 10 Armor Coverage 225 Phase Shifting 5 Evasion (%) 50 Targeting Accuracy 5 Recoil Reduction 2 Item Schematics ----------------- None Robot Schematics ------------------ None Fabricated ------------ Nothing Alien Tech Used ----------------- None Achievements -------------- None Challenges ------------ None Game ------ Seed MicroSingularityTorch Manual? 0 Play Time 01:24:45 Cumulative 136.1 hours Start 2021.05.28 @ 17:43:35 End 2021.05.28 @ 19:15:34 Sessions 1 Manual Loads 0 Difficulty Rogue Special Mode None Game No. 208 Rogue 206 Adventurer 2 Explorer 0 Win Type - Total 1 Types 1/0/0/0/0/0/0/0/0 Lore% 59 Gallery% 58 Achievement% 46 Wizard Run 0 Options --------- ASCII 0 Keyboard 0 Movement Mouse Keybinds 0 Fullscreen 1 Font 18/SmallcapsGlow Map View 76x50 Tactical HUD 0 Map Filters NONE Filters NONE Steam 1 RUN: 73d16b80-3b93-4fcf-99d2-d4ae5d20040d